Cogmind - Beta 9.3 @@@ ROGUE MODE // 2020.01.06 @ 04:25:43 // Winter2019/RPGLIKE Player: FontPeg Result: Destroyed by S-27 Virus with Autogun Performance ------------- Evolutions (4) 2000 Regions Visited (10) 2000 Robots Destroyed (135) 675 Value Destroyed (3846) 3846 Prototype IDs (27) 540 Alien Tech Used (0) 0 Bonus (983) 983 TOTAL SCORE: 10044 Bonus ------- High Alert Combat Kills 681 Follower Combat Kills 190 Met Data Miner 300 Friendly Fire -188 Cogmind --------- Core Integrity 0/1000 Matter 250/300 Energy 290/340 System Corruption 0% Temperature Cool (43) Movement Flying (24) Location -6/Factory Parts ------- > --- POWER (2) -------- Improved Deuterium Engine Light Angular Momentum Engine > --- PROPULSION (4) --- Cesium-ion Thruster Improved VTOL Module Cooled VTOL Module Experimental Cesium-ion Thruster > --- UTILITY (7) ------ Advanced Sensor Array Improved Signal Interpreter Weapon Cycler Weapon Cycler Hardlight Generator Hacking Suite Hacking Suite > --- WEAPON (3) ------- Gatling Laser Gatling Laser Gatling Laser > --- INVENTORY (4) ---- Improved Cesium-ion Thruster Improved Integration Mediator Gatling Laser Heavy Missile Launcher Peak State ------------ > --- POWER ------------ Improved Deuterium Engine Light Angular Momentum Engine > --- PROPULSION ------- Improved VTOL Module Improved Cesium-ion Thruster Cooled VTOL Module Experimental Cesium-ion Thruster > --- UTILITY ---------- Advanced Sensor Array Improved Signal Interpreter Weapon Cycler Weapon Cycler Hardlight Generator Hacking Suite Hacking Suite > --- WEAPON ----------- Gatling Laser Gatling Laser Gatling Laser > --- INVENTORY -------- Improved Flight Unit Improved Integration Mediator Gatling Laser Heavy Missile Launcher [Rating: 65] Favorites ----------- Power Light Angular Momentum Engine Engine Light Angular Momentum Engine Power Core Light Nuclear Core Propulsion Cesium-ion Thruster Treads Light Treads Flight Unit Cesium-ion Thruster Utility Hacking Suite Device Advanced Sensor Array Storage Compact Battery Processor Improved Signal Interpreter Hackware Hacking Suite Weapon Gatling Laser Energy Gun Gatling Laser Energy Cannon Advanced Beam Cannon Ballistic Gun Assault Rifle Launcher Grenade Launcher Impact Weapon Impact Mace Slashing Weapon Scythe Build | -11 -10 -10 -9 -8 -7 -7 -7 -7 -6 -6 ------- Run | Scr Mat Min Mat Mat Fac Low Low Dat Pro Fac Slots Evolved 12 | 2 . 1 4 2 2 . . . 1 . Power 1 | . . . . 1 . . . . . . Propulsion 3 | . . 1 2 . . . . . . . Utility 6 | 1 . . 2 . 2 . . . 1 . Weapon 2 | 1 . . . 1 . . . . . . Parts Attached 108 | 4 4 5 21 14 49 1 . . 1 9 Power 10 | 1 . . 2 2 4 1 . . . . Engine 8 | 1 . . 1 1 4 1 . . . . Core 2 | . . . 1 1 . . . . . . Reactor . | . . . . . . . . . . . Propulsion 24 | 1 1 1 6 1 10 . . . . 4 Treads 1 | 1 . . . . . . . . . . Leg . | . . . . . . . . . . . Wheel . | . . . . . . . . . . . Hover . | . . . . . . . . . . . Flight 23 | . 1 1 6 1 10 . . . . 4 Utility 20 | . 2 . 3 2 8 . . . 1 4 Device 12 | . . . . 1 7 . . . 1 3 Storage 3 | . 2 . 1 . . . . . . . Processor 3 | . . . 2 . 1 . . . . . Hackware 2 | . . . . 1 . . . . . 1 Protection . | . . . . . . . . . . . Artifact . | . . . . . . . . . . . Weapon 54 | 2 1 4 10 9 27 . . . . 1 Energy Gun 22 | 1 . . 2 5 13 . . . . 1 Energy Cannon 21 | . . 1 8 3 9 . . . . . Ballistic Gun 1 | 1 . . . . . . . . . . Ballistic Cannon . | . . . . . . . . . . . Launcher 7 | . 1 3 . . 3 . . . . . Special Weapon . | . . . . . . . . . . . Impact Weapon 2 | . . . . . 2 . . . . . Slashing Weapon 1 | . . . . 1 . . . . . . Piercing Weapon . | . . . . . . . . . . . Special Melee Weapon . | . . . . . . . . . . . Unidentified Prototypes 10 | . . . 3 3 4 . . . . . Parts Lost 3 | . . . 1 1 1 . . . . . Power . | . . . . . . . . . . . Propulsion 3 | . . . 1 1 1 . . . . . Utility . | . . . . . . . . . . . Weapon . | . . . . . . . . . . . Highest Loss Streak 1 | . . . 1 1 1 . . . . . Average Slot Usage (%) 98 | . 88 99 97 97 99 100 100 100 97 99 Engine 11 | . 16 15 8 3 13 13 13 13 12 12 Core 1 | . . . 2 7 . . . . . . Flight 25 | . 9 18 24 29 27 26 26 26 25 25 Device 11 | . . . . 7 17 26 26 26 28 25 Storage 11 | . 21 31 23 7 3 . . . . . Processor 7 | . . . 12 9 6 6 6 6 6 6 Hackware 4 | . . . . 5 6 6 6 6 6 11 Energy Gun 10 | . 16 3 6 11 11 20 20 20 18 18 Energy Cannon 8 | . . 12 14 10 8 . . . . . Launcher 2 | . 4 15 2 . . . . . . . Naked Turns . | . . . . . . . . . . . Heaviest Build 43 | 7 13 15 16 26 43 41 41 41 42 39 Greatest Support 46 | 13 14 18 34 34 46 45 45 45 45 45 Greatest Overweight (x) 2 | . . 1 1 . 2 1 . . . . Average Overweight (x) . | . . . . . . . . . . . Largest Inventory Capacity 4 | . . 2 2 3 4 4 4 4 4 4 Average Capacity 2 | . . . 2 2 3 4 4 4 4 4 Most Carried 4 | . . 1 2 3 4 4 4 4 4 4 Average Carried 2 | . . . 1 2 3 4 4 4 3 3 Final Capacity 4 | . . 2 2 3 4 4 4 4 4 4 Final Carried 4 | . . 1 2 3 4 4 4 4 3 4 Class Distribution -------------------- 60% | Hacker-Scout 18% | Hacker-Mutant 18% | Mutant Dominant Class ---------------- Mutant | -10/Materials Mutant | -10/Mines Hacker-Mutant | -9/Materials Hacker-Scout | -8/Materials Hacker-Scout | -7/Factory Hacker-Scout | -7/Lower Caves Hacker-Scout | -7/Lower Caves Hacker-Scout | -7/Data Miner Hacker-Scout | -6/Proximity Caves Hacker-Scout | -6/Factory Resources | -11 -10 -10 -9 -8 -7 -7 -7 -7 -6 -6 ----------- Run | Scr Mat Min Mat Mat Fac Low Low Dat Pro Fac Matter Collected 1885 | 240 130 368 299 135 621 10 15 . 19 48 Remotely . | . . . . . . . . . . . Salvage Created 4657 | . . 280 1336 666 1792 . . . 157 426 Parts 254 | . . 18 99 42 74 4 . . 7 10 Haulers Intercepted 12 | . . . 5 2 4 . . . . 1 Recyclers Shooed 2 | . . . 1 . 1 . . . . . Parts Field Recycled . | . . . . . . . . . . . Retrieved Matter . | . . . . . . . . . . . Parts Self-Destructed 14 | . . . . . . 5 . . 9 . Prevented . | . . . . . . . . . . . Kills | -11 -10 -10 -9 -8 -7 -7 -7 -7 -6 -6 ------- Run | Scr Mat Min Mat Mat Fac Low Low Dat Pro Fac Combat Hostiles Destroyed 98 | . . 10 29 20 29 3 . . 4 3 Melee 1 | . . . . . 1 . . . . . Guns 42 | . . 1 9 12 10 3 . . 4 3 Cannons 37 | . . 4 14 7 12 . . . . . AOE 16 | . . 5 6 . 5 . . . . . Classes Destroyed 13 | . . 3 7 2 1 . . . . . Worker 4 | . . . 1 . 3 . . . . . Builder 5 | . . 1 1 . 2 . . . . 1 Tunneler 1 | . . . 1 . . . . . . . Hauler 12 | . . . 5 2 4 . . . . 1 Recycler 7 | . . . 1 . 5 . . . . 1 Operator 2 | . . . 1 1 . . . . . . Watcher 5 | . . . 3 . 2 . . . . . Swarmer 36 | . . 3 15 5 7 3 . . 2 1 Grunt 35 | . . 7 8 8 11 . . . 1 . Duelist 2 | . . . . 1 1 . . . . . Sentry 19 | . . . 7 4 6 . . . . 2 Hunter 3 | . . . . 2 1 . . . . . Programmer 4 | . . . . . 3 . . . 1 . Best Kill Streak 10 | . . 3 10 10 6 3 . . 2 3 Combat Bots Only 8 | . . 3 8 7 4 3 . . 2 1 Max Kills in Single Turn 5 | . . 3 3 1 5 2 . . 1 2 Gunslinging 1 | . . . . . . 1 . . . . Exploded 4 | . . 2 2 . 4 . . . . . Melee 1 | . . . . . 1 . . . . . Uniques/NPCs Destroyed . | . . . . . . . . . . . Combat | -11 -10 -10 -9 -8 -7 -7 -7 -7 -6 -6 -------- Run | Scr Mat Min Mat Mat Fac Low Low Dat Pro Fac Damage Taken 5316 | . . 346 1565 855 1698 188 119 . 348 197 Core 4354 | . . 278 1295 707 1390 144 95 . 289 156 Absorbed by Shields 510 | . . . . . 294 63 48 . 54 51 Redirected to Core 3102 | . . 221 912 491 952 132 66 . 202 126 Core Remaining (%) 61 | 100 . 87 26 81 . . . . 15 . Volleys Fired 319 | . . 44 84 58 108 5 . . 10 10 Largest 3 | . . 2 2 3 3 3 . . 3 3 Hottest 240 | . . 93 136 204 240 240 . . 240 240 Shots Fired 735 | . . 73 158 160 276 14 . . 24 30 Gun 336 | . . 5 55 80 128 14 . . 24 30 Cannon 353 | . . 35 97 80 141 . . . . . Launcher 46 | . . 33 6 . 7 . . . . . Special . | . . . . . . . . . . . Kinetic . | . . . . . . . . . . . Thermal 603 | . . 40 105 160 230 14 . . 24 30 Explosive 46 | . . 33 6 . 7 . . . . . Electromagnetic 86 | . . . 47 . 39 . . . . . Robot Hit Streak 23 | . . 6 11 16 23 7 . . 20 13 Robot Miss Streak 7 | . . 3 6 5 4 7 . . 6 4 Penetration Max . | . . . . . . . . . . . Secondary Targets 1 | . . . . . . 1 . . . . Max Gunslinging Chain 1 | . . . . . . 1 . . . . Shots Hit Robots 461 | . . 20 95 89 196 12 . . 21 28 Core Hits 241 | . . 22 58 38 84 6 . . 13 20 Critical Hits 14 | . . . 5 . 9 . . . . . Critical Kills 7 | . . . 3 . 4 . . . . . Critical Parts Destroyed 7 | . . . 2 . 5 . . . . . Melee Attacks 4 | . . . . . 4 . . . . . Impact 4 | . . . . . 4 . . . . . Slashing . | . . . . . . . . . . . Piercing . | . . . . . . . . . . . Sneak Attacks 1 | . . . . . 1 . . . . . Combat Hostiles . | . . . . . . . . . . . Follow-up Attacks . | . . . . . . . . . . . Damage Inflicted 9750 | . . 831 2236 1647 3926 154 . . 379 577 Guns 4446 | . . 52 622 1021 1641 154 . . 379 577 Cannons 3378 | . . 177 872 626 1703 . . . . . Explosions 1739 | . . 602 742 . 395 . . . . . Melee 186 | . . . . . 186 . . . . . Ramming 1 | . . . . . 1 . . . . . Kinetic . | . . . . . . . . . . . Thermal 7014 | . . 229 1211 1647 2817 154 . . 379 577 Explosive 1502 | . . 602 505 . 395 . . . . . Electromagnetic 1047 | . . . 520 . 527 . . . . . Impact 186 | . . . . . 186 . . . . . Slashing . | . . . . . . . . . . . Piercing . | . . . . . . . . . . . Highest Corruption 5 | . . . . 1 4 4 4 4 5 . Average Corruption 3 | . . . . 1 3 4 4 4 4 . Corruption Purged . | . . . . . . . . . . . Effects 39 | . . . . . 21 6 4 . 8 . Message Errors 7 | . . . . . 4 1 . . 2 . Matter Fused 11 | . . . . . 7 . 2 . 2 . Heat Flow Errors 4 | . . . . . 1 1 2 . . . Energy Discharges 2 | . . . . . 1 1 . . . . Data Loss (minor) 5 | . . . . . 3 1 . . 1 . Data Loss (major) 1 | . . . . . . . . . 1 . Targeting Errors 6 | . . . . . 3 1 . . 2 . Weapon Failures 3 | . . . . . 2 1 . . . . Overload Shots . | . . . . . . . . . . . Overflow Damage 93 | . . . 34 17 42 . . . . . Projectiles 38 | . . . 8 17 13 . . . . . Explosions 26 | . . . 26 . . . . . . . Melee 29 | . . . . . 29 . . . . . Knockbacks 4 | . . . . . 4 . . . . . Impact 3 | . . . . . 3 . . . . . Kinetic . | . . . . . . . . . . . Secondary 1 | . . . . . 1 . . . . . Self-Inflicted Damage 408 | . . 172 164 . 72 . . . . . Shots 14 | . . 8 5 . 1 . . . . . Rammed 1 | . . . . . 1 . . . . . Targets Rammed 1 | . . . . . 1 . . . . . Kicked . | . . . . . . . . . . . Crushed . | . . . . . . . . . . . Highest Temperature 569 | . . 154 259 355 569 333 234 . 542 82 Average Temperature 105 | . . 49 48 79 149 190 119 . 194 52 Received Heat Transfer 1415 | . . 90 384 270 474 8 62 . 84 43 Effects 40 | . . . 2 1 27 1 3 . 6 . Shutdowns 10 | . . . . . 9 1 . . . . Energy Bleed 2 | . . . . . 2 . . . . . Interference 16 | . . . 2 . 7 . 3 . 4 . Matter Decay 3 | . . . . . 3 . . . . . Short Circuit 2 | . . . . . 2 . . . . . Damage (minor) 5 | . . . . 1 3 . . . 1 . Damage (major) 1 | . . . . . . . . . 1 . Damage (core) 1 | . . . . . 1 . . . . . Siege Activations . | . . . . . . . . . . . Robots Corrupted 1 | . . . . . 1 . . . . . Combat Hostiles . | . . . . . . . . . . . Parts Fried 2 | . . . 1 . 1 . . . . . Impact Corruptions 1 | . . . . . 1 . . . . . Robots Melted 2 | . . . . 1 1 . . . . . Combat Hostiles 2 | . . . . 1 1 . . . . . Parts Melted 34 | . . 1 1 13 19 . . . . . Heat Transferred 13552 | . . 518 2200 3108 5426 350 . . 750 1200 Parts Sabotaged . | . . . . . . . . . . . Parts Stolen . | . . . . . . . . . . . Parts Stripped . | . . . . . . . . . . . Power Chain Reactions 4 | . . . 3 . 1 . . . . . Missiles Intercepted . | . . . . . . . . . . . Alert | -11 -10 -10 -9 -8 -7 -7 -7 -7 -6 -6 ------- Run | Scr Mat Min Mat Mat Fac Low Low Dat Pro Fac Peak Influence 967 | . 9 199 728 609 967 . . . . 642 Average Influence 443 | . 8 104 462 409 638 . . . . 143 Maximum Alert Level 3 | . . . 3 2 3 . . . . 2 Low Security (%) 24 | 100 100 100 8 1 . . . . . 91 Level 1 19 | . . . 32 47 12 . . . . 7 Level 2 36 | . . . 51 51 42 . . . . . Level 3 19 | . . . 7 . 44 . . . . . Level 4 . | . . . . . . . . . . . Level 5 . | . . . . . . . . . . . High Security . | . . . . . . . . . . . Max Security . | . . . . . . . . . . . Squads Dispatched 24 | . . . 3 5 12 . . . . 4 Investigation 5 | . . . 1 2 2 . . . . . Extermination 2 | . . . . . 2 . . . . . Reinforcement 10 | . . . 2 1 6 . . . . 1 Assault 3 | . . . . . 2 . . . . 1 Garrison 4 | . . . . 2 . . . . . 2 Intercept . | . . . . . . . . . . . Construction Impeded 2 | . . . . . 2 . . . . . Haulers Reinforced 2 | . . . . . 2 . . . . . Stealth | -11 -10 -10 -9 -8 -7 -7 -7 -7 -6 -6 --------- Run | Scr Mat Min Mat Mat Fac Low Low Dat Pro Fac Distress Signals 4 | . . . 3 . . . . . . 1 Communications Jammed . | . . . . . . . . . . . Distress Signals . | . . . . . . . . . . . Times Spotted 174 | . . 11 46 30 43 14 6 . 12 12 Peak Tracking Total 9 | . . 3 9 6 5 4 5 . 6 8 Tactical Retreats 16 | . . 1 2 2 3 2 2 . 4 . Traps | -11 -10 -10 -9 -8 -7 -7 -7 -7 -6 -6 ------- Run | Scr Mat Min Mat Mat Fac Low Low Dat Pro Fac Traps Triggered 2 | . . . . 1 1 . . . . . Indirectly . | . . . . . . . . . . . Trap Hack Attempts . | . . . . . . . . . . . Triggered . | . . . . . . . . . . . Disarmed 4 | . . . . . 4 . . . . . Reprogrammed . | . . . . . . . . . . . Reused . | . . . . . . . . . . . Traps Extracted . | . . . . . . . . . . . Installed . | . . . . . . . . . . . Triggered 4 | . . . . . . . . . 4 . Machines | -11 -10 -10 -9 -8 -7 -7 -7 -7 -6 -6 ---------- Run | Scr Mat Min Mat Mat Fac Low Low Dat Pro Fac Machines Disabled 11 | . . 1 3 1 6 . . . . . Max in Single Turn 1 | . . 1 1 1 1 . . . . . Garrison Access 2 | . . . . . . . . . . 2 Machines Sabotaged . | . . . . . . . . . . . Garrisons Compromised . | . . . . . . . . . . . Overloaded Fab Kills . | . . . . . . . . . . . Fab Network Shutdowns 1 | . . . . . . . . . . 1 Hacking | -11 -10 -10 -9 -8 -7 -7 -7 -7 -6 -6 --------- Run | Scr Mat Min Mat Mat Fac Low Low Dat Pro Fac Machines Accessed 33 | . 2 1 10 4 11 . . 3 . 2 Terminals 24 | . 2 1 8 4 9 . . . . . Fabricators 2 | . . . . . 1 . . . . 1 Repair Stations . | . . . . . . . . . . . Recycling Units . | . . . . . . . . . . . Scanalyzers 3 | . . . 2 . 1 . . . . . Garrison Access 1 | . . . . . . . . . . 1 Total Hacks 117 | . 6 3 30 18 34 . . 22 . 4 Successful 89 | . 4 1 22 12 25 . . 22 . 3 Failed 28 | . 2 2 8 6 9 . . . . 1 Catastrophic . | . . . . . . . . . . . Database Lockouts . | . . . . . . . . . . . Manual 44 | . 2 3 14 14 11 . . . . . Terminals 72 | . 6 3 23 18 22 . . . . . Fabricators 7 | . . . . . 5 . . . . 2 Repair Stations . | . . . . . . . . . . . Recycling Units . | . . . . . . . . . . . Scanalyzers 14 | . . . 7 . 7 . . . . . Garrison Access 2 | . . . . . . . . . . 2 Terminal Hacks 51 | . 2 1 8 8 10 . . 22 . . Record 2 | . . . . . . . . 2 . . Part Schematic 13 | . . . . . 3 . . 10 . . Robot Schematic 7 | . . . . . . . . 7 . . Prototype ID Bank 6 | . 1 . 1 . 1 . . 3 . . Branch Access Points 2 | . . 1 . 1 . . . . . . Emergency Access Points 1 | . 1 . . . . . . . . . Fabricator Index 1 | . . . . . 1 . . . . . Alert Level 3 | . . . 1 2 . . . . . . Unreport Threat 7 | . . . 2 3 2 . . . . . Disarm Traps 1 | . . . . . 1 . . . . . Recall Investigation 1 | . . . 1 . . . . . . . Hauler Manifests 5 | . . . 2 1 2 . . . . . Registered Components 2 | . . . 1 1 . . . . . . Fabricator Hacks 6 | . . . . . 4 . . . . 2 Load Schematic 2 | . . . . . 1 . . . . 1 Build 4 | . . . . . 3 . . . . 1 Repair Station Hacks . | . . . . . . . . . . . Recycling Unit Hacks . | . . . . . . . . . . . Scanalyzer 13 | . . . 6 . 7 . . . . . Insert Component 7 | . . . 3 . 4 . . . . . Analyze 6 | . . . 3 . 3 . . . . . Garrison Access Hacks 1 | . . . . . . . . . . 1 Seal Access 1 | . . . . . . . . . . 1 Unauthorized Hacks 41 | . 4 . 19 8 10 . . . . . Terminals 16 | . 2 . 7 4 3 . . . . . Track 1 | . . . 1 . . . . . . . Botnet 13 | . 2 . 5 3 3 . . . . . Operators 2 | . . . 1 1 . . . . . . Fabricators 1 | . . . . . 1 . . . . . Prioritize 1 | . . . . . 1 . . . . . Repair Stations . | . . . . . . . . . . . Recycling Units . | . . . . . . . . . . . Scanalyzers 1 | . . . 1 . . . . . . . Extract 1 | . . . 1 . . . . . . . Garrison Access . | . . . . . . . . . . . Data Cores Recovered 1 | . . . 1 . . . . . . . Used . | . . . . . . . . . . . Hacking Detections 26 | . 2 1 7 4 10 . . . . 2 Full Trace Events 5 | . . . 1 2 2 . . . . . Feedback Events 1 | . . . . 1 . . . . . . Corruption 1 | . . . . 1 . . . . . . Feedback Blocked . | . . . . . . . . . . . Robot Schematics Acquired 7 | . . . . . . . . 7 . . Robots Built . | . . . . . . . . . . . Matter . | . . . . . . . . . . . Time . | . . . . . . . . . . . Total Robot Build Rating . | . . . . . . . . . . . Part Schematics Acquired 25 | . . . 10 . 5 . . 10 . . Parts Built 7 | . . . . . 6 . . . . 1 Matter 822 | . . . . . 504 . . . . 318 Time 224 | . . . . . 168 . . . . 56 Total Part Build Rating 30 | . . . . . 24 . . . . 6 Parts Repaired . | . . . . . . . . . . . Time . | . . . . . . . . . . . Parts Recycled . | . . . . . . . . . . . Recycled Matter . | . . . . . . . . . . . Retrieved Matter . | . . . . . . . . . . . Retrieved Components . | . . . . . . . . . . . Parts Scanalyzed 6 | . . . 3 . 3 . . . . . Part Schematics Acquired 5 | . . . 3 . 2 . . . . . Parts Damaged . | . . . . . . . . . . . Bothacking | -11 -10 -10 -9 -8 -7 -7 -7 -7 -6 -6 ------------ Run | Scr Mat Min Mat Mat Fac Low Low Dat Pro Fac Used RIF Installer . | . . . . . . . . . . . Robots Hacked . | . . . . . . . . . . . Non-combat . | . . . . . . . . . . . Combat . | . . . . . . . . . . . Robot Hacks Applied . | . . . . . . . . . . . Relay Couplers Released 1 | . . . . . . . . . . 1 Machine Destruction 1 | . . . . . . . . . . 1 Robots Rewired 1 | . . . . . 1 . . . . . Allies Hacked . | . . . . . . . . . . . Hacks Repelled . | . . . . . . . . . . . Allies | -11 -10 -10 -9 -8 -7 -7 -7 -7 -6 -6 -------- Run | Scr Mat Min Mat Mat Fac Low Low Dat Pro Fac Total Allies 5 | . . 3 . . 1 . . . 1 . Largest Group 3 | . . 3 2 . 1 . . . 1 . Highest-Rated Group 94 | . . 40 32 . 34 . . . 94 . Highest-Rated Ally 94 | . . 16 16 . 34 . . . 94 . Total Orders 1 | . . . . . 1 . . . . . GUARD 1 | . . . . . 1 . . . . . Ally Attacks 43 | . . 24 2 . 12 . . . 5 . Total Damage 1099 | . . 283 34 . 685 . . . 97 . Kills 12 | . . 3 1 . 7 . . . 1 . Allies Corrupted . | . . . . . . . . . . . Allies Melted . | . . . . . . . . . . . Intel | -11 -10 -10 -9 -8 -7 -7 -7 -7 -6 -6 ------- Run | Scr Mat Min Mat Mat Fac Low Low Dat Pro Fac Robot Analysis Total . | . . . . . . . . . . . Derelict Logs Recovered 5 | . . 2 . . . . 1 . 2 . Drone Launches . | . . . . . . . . . . . Drone Recoveries . | . . . . . . . . . . . Exploration | -11 -10 -10 -9 -8 -7 -7 -7 -7 -6 -6 ------------- Run | Scr Mat Min Mat Mat Fac Low Low Dat Pro Fac Turns Passed 4698 | 22 104 606 869 593 1666 170 222 27 218 201 Spaces Moved 7581 | 33 221 1079 1249 803 2349 386 569 90 411 391 Core 147 | 33 83 . . . 28 3 . . . . Treads . | . . . . . . . . . . . Legs . | . . . . . . . . . . . Wheels . | . . . . . . . . . . . Hover . | . . . . . . . . . . . Flight 7434 | . 138 1079 1249 803 2321 383 569 90 411 391 Fastest Speed 23 | 50 40 37 31 29 26 26 26 26 26 23 Average Speed 33 | 50 43 39 37 29 34 26 26 26 26 25 Slowest Speed 150 | 50 50 120 120 34 150 100 26 26 26 27 Overloaded Moves . | . . . . . . . . . . . Propulsion Burnouts . | . . . . . . . . . . . Robots Hopped 37 | . . 1 10 2 19 2 1 . 1 1 Cave-ins Triggered . | . . . . . . . . . . . Exploration Rate (%) 54 | 3 46 99 71 58 43 56 73 67 68 15 Regions Visited 10 Branch Regions 5 Pre-discovered Areas 2 | . . 1 . . . . . 1 . . Known Exits Taken 7 | . . . 1 1 1 1 1 1 1 . Unknown Exits Taken 3 | 1 1 1 . . . . . . . . Scrap Searched 3 | . . 2 . . . . 1 . . . Spaces Dug 132 | . . 132 . . . . . . . . Terrain Destroyed 385 | . . 266 70 7 42 . . . . . Melee . | . . . . . . . . . . . Projectile 12 | . . . 1 7 4 . . . . . AOE 373 | . . 266 69 . 38 . . . . . Actions | -11 -10 -10 -9 -8 -7 -7 -7 -7 -6 -6 --------- Run | Scr Mat Min Mat Mat Fac Low Low Dat Pro Fac Total 9056 | 36 226 1186 1479 1025 2952 439 641 92 505 475 Wait 815 | . . 45 70 91 354 38 74 3 81 59 Move 7500 | 32 220 1076 1229 798 2312 381 566 89 408 389 Hop 34 | . . 1 9 2 17 2 1 . 1 1 Pick Up 32 | . . 2 8 6 14 . . . . 2 Fast Attach 47 | 4 4 3 10 8 15 1 . . . 2 Attach 12 | . . 1 2 2 6 . . . 1 . Detach 2 | . . . . . 2 . . . . . Swap 49 | . . 1 9 4 28 . . . . 7 Drop 72 | . 2 3 16 8 37 1 . . . 5 Fire 319 | . . 44 84 58 108 5 . . 10 10 Melee 4 | . . . . . 4 . . . . . Ram 1 | . . . . . 1 . . . . . Kick . | . . . . . . . . . . . Crush . | . . . . . . . . . . . Escape Stasis . | . . . . . . . . . . . Rewire 12 | . . . . . 8 3 . . 1 . Trap . | . . . . . . . . . . . Miscellaneous 157 | . . 10 42 48 46 8 . . 3 . Route ------- -11/Scrapyard -10/Materials -10/Mines (discovered 2 exits: *Mat x2) -9/Materials (discovered 5 exits: *Mat x3 / *Min x2) -8/Materials (discovered 2 exits: *Fac x2) -7/Factory (discovered 3 exits: *Fac x2 / *Low) -7/Lower Caves -7/Lower Caves (discovered 2 exits: *Fac / *Dat) -7/Data Miner -6/Proximity Caves -6/Factory History --------- Turn | Location | Event 1 | -11/Scrapyard | Upgraded with Utility slot (x1) 1 | -11/Scrapyard | Upgraded with Weapon slot (x1) 6 | -11/Scrapyard | Discovered new exit (range 17) 23 | -11/Scrapyard | Entered Materials 115 | -10/Materials | Discovered new exit (range 16) 127 | -10/Materials | Entered Mines 159 | -10/Mines | Discovered new exit (range 8) 170 | -10/Mines | Discovered new exit (range 17) 173 | -10/Mines | Assisted by bots powering up and referring to "LRC-V3" 252 | -10/Mines | Learned Materials machine intel 265 | -10/Mines | Learned location of Zion (-6) 273 | -10/Mines | Received a Rocket Launcher from a helpful Derelict 318 | -10/Mines | Build established: Mutant 579 | -10/Mines | Reached level 2 589 | -10/Mines | Upgraded with Propulsion slot (x1) 733 | -10/Mines | Entered Materials 733 | -9/Materials | Accompanied by 2 allies 734 | -9/Materials | Loaded intel: 60 machine locations 735 | -9/Materials | Reached level 3 803 | -9/Materials | Reached level 4 813 | -9/Materials | Core integrity fell below 50% 827 | -9/Materials | Destroyed 8 combat bots 872 | -9/Materials | Upgraded with Utility slot (x1) 961 | -9/Materials | Discovered new exit (range 9) 1052 | -9/Materials | Reached level 5 1103 | -9/Materials | Destroyed 7 combat bots 1120 | -9/Materials | Discovered new exit (range 19) 1141 | -9/Materials | Discovered new exit (range 17) 1153 | -9/Materials | Upgraded with Utility slot (x1) 1157 | -9/Materials | Identified exit to Mines 1174 | -9/Materials | Build established: Hacker-Mutant 1233 | -9/Materials | Reached level 6 1271 | -9/Materials | Discovered new exit (range 11) 1274 | -9/Materials | Identified exit to Materials 1359 | -9/Materials | Discovered exit to Materials (range 18) 1565 | -9/Materials | Upgraded with Propulsion slot (x2) 1602 | -9/Materials | Entered another Materials area 1603 | -8/Materials | Core integrity fell below 50% 1604 | -8/Materials | Reached level 7 1623 | -8/Materials | Upgraded with Weapon slot (x1) 1634 | -8/Materials | Core integrity fell below 20% 1864 | -8/Materials | Reached level 8 1868 | -8/Materials | Upgraded with Power slot (x1) 1948 | -8/Materials | Build established: Hacker-Scout 2080 | -8/Materials | Discovered new exit (range 20) 2086 | -8/Materials | Identified exit to Factory 2088 | -8/Materials | Garrison activated, responded to threat 2138 | -8/Materials | Reached level 9 2167 | -8/Materials | Destroyed 7 combat bots 2188 | -8/Materials | Discovered exit to Factory (range 6) 2195 | -8/Materials | Entered Factory 2197 | -7/Factory | Reached level 10 2501 | -7/Factory | Upgraded with Utility slot (x1) 2643 | -7/Factory | Reached level 11 2678 | -7/Factory | Discovered new exit (range 6) 2680 | -7/Factory | Identified exit to Factory 2693 | -7/Factory | Discovered new exit (range 12) 2696 | -7/Factory | Identified exit to Lower Caves 3015 | -7/Factory | Reached level 12 3055 | -7/Factory | Discovered exit to Factory (range 13) 3272 | -7/Factory | Reached level 13 3291 | -7/Factory | Upgraded with Utility slot (x1) 3395 | -7/Factory | First assault squad dispatched 3581 | -7/Factory | Core integrity fell below 50% 3716 | -7/Factory | Fabricated Weapon Cycler (x2) 3758 | -7/Factory | Fabricated Gatling Laser (x2) 3838 | -7/Factory | Fabricated Gatling Laser (x2) 3861 | -7/Factory | Entered Lower Caves 3863 | -7/Lower Caves | Reached level 14 4020 | -7/Lower Caves | Attracted the attention of an 0b10 checkpoint 4023 | -7/Lower Caves | Discovered new exit (range 10) 4026 | -7/Lower Caves | Identified exit to Lower Caves 4031 | -7/Lower Caves | Entered another Lower Caves area 4042 | -7/Lower Caves | Discovered exit to Factory (range 9) 4061 | -7/Lower Caves | Learned Factory non-interactive machine intel 4135 | -7/Lower Caves | Attracted the attention of an 0b10 checkpoint 4224 | -7/Lower Caves | Ambushed by wild Derelicts 4234 | -7/Lower Caves | Encountered a Warlord checkpoint 4235 | -7/Lower Caves | Discovered new exit (range 19) 4240 | -7/Lower Caves | Identified exit to Data Miner 4253 | -7/Lower Caves | Entered Data Miner 4254 | -7/Data Miner | Discovered new exit (range 6) 4258 | -7/Data Miner | Met Data Miner 4266 | -7/Data Miner | Learned location of Section 7 (-3) 4270 | -7/Data Miner | Received God Mode back door access code from Data Miner 4277 | -7/Data Miner | Identified exit to Proximity Caves 4280 | -7/Data Miner | Entered Proximity Caves 4282 | -6/Proximity Caves | Reached level 15 4282 | -6/Proximity Caves | Upgraded with Utility slot (x1) 4288 | -6/Proximity Caves | Escorted by Enhanced Grunt 4394 | -6/Proximity Caves | Reached level 16 4409 | -6/Proximity Caves | Core integrity fell below 20% 4445 | -6/Proximity Caves | Learned Factory terminal intel 4498 | -6/Proximity Caves | Entered Factory 4499 | -6/Factory | Loaded intel: 211 non-interactive machine locations 4499 | -6/Factory | Core integrity fell below 50% 4499 | -6/Factory | Core integrity fell below 20% 4500 | -6/Factory | Loaded intel: 22 terminal locations 4500 | -6/Factory | Reached level 17 4543 | -6/Factory | Garrison activated, responded to threat 4553 | -6/Factory | Garrison activated, responded to threat 4647 | -6/Factory | Fabricated Exp. Cesium-ion Thruster (x1) 4698 | -6/Factory | Local fabrication network quarantined 4699 | -6/Factory | Destroyed by S-27 Virus with Autogun Last Messages --------------- Matter: 318 Initiate build sequence. >>Build Building Exp. Cesium-ion Thruster... ETC: 56 04647_ Fabricator completes Exp. Cesium-ion Thruster. 04648_ Dropped Cesium-ion Thruster. 04652_ Dropped Imp. Flight Unit. 04652_ Acquired Cesium-ion Thruster. 04666_ Dropped Adv. Sensor Array. 04682_ U-05 Engineer destroyed. 04682_ W-25 Informer sends out distress signal. 04684_ K-01 Serf collects debris. 04691_ C-30 ARC bursts open, deploying its payload. 04691_ S-27 Virus unfolds itself. 04693_ ALERT: Hostiles spotted, dispatching reinforcements to Terminal F011. 04694_ K-01 Serf collects debris. 04698_ ALERT: Fabrication network compromised, local systems quarantined. 04698_ S-27 Virus destroyed. Map ----- +----------------------------------------------------+ | ???# """ """ # # " " " #???????????? | | ???# ""R" """"" # # #???????????? | | ???# "" " """"" + + #???????????? | | ???# # ################?????????? | | ???#! !# ?????? | | ???############+### ?????? | | ?????????# # ?????? | | ?????????#""" # g k ??????? | | ?????????#""" # R *%! ??????? | | ?????????#""" + ###############+##???????? | | ?????????# # #????????????????????????? | | ?????????#""" # #????????????????????????? | | ?????????#""" # #????????????????????????? | | ?????????#""" [ # #????????????????????????? | | ?????????# # #????????????????????????? | | ?????????########## #????????????????????????? | | ??????????????????# #????????????????????????? | | ??????????????????# #????????????????????????? | | ??????????????????# ###########??????????????? | | ??????????????????# # = #??????????????? | | ??"""?????????????# # """ #??????????????? | | ??"""?????????????# # "T" #??????????????? | | ??"""?????????????# # ==!#??????????????? | | ??????????????????# s*""" =!!#??????????????? | | ??"""?????????????# #s""" =! #??????????????? | | ??"""?????????????# s #@""" ##?????????????? | | ??"""?????????????#" # Y #?????????????? | | ????????????????? "%" ############?????????????? | | ??????????????? kk #????????????????????????? | | ????????????? #????????????????????????? | | ???????????? #????????????????????????? | | ?????""""?"""" #????????????????????????? | | ?????""""?"""" ###/####????????????????????????? | | ?????""""?"""" ?? o????????????????????????????? | | ???????????? R ???T ???????????????????????????"" | | ?????"""??"""" ??? ???????????????????????????"" | | ?????"""??"""" ??? """""""""????????????????????"" | | ?????"""?k""""???? ?????????????????????????????? | | ??????????????u????"""""""""?????????????????????? | | ?????""""?""""??????????????k????????????????????? | | ?????""""?""""?????"""""""""?????????????????????? | | ?????""""?""""???????????????????????????????????? | | ???????????????????"""""""""???????u?????????????? | | ?????"""??""""???????????????????????????????????? | | ?????"""??""""???????????????????????????????????? | | ?????"""??""""???????????????????????????????????? | | ?????????????????????????????????????????????????? | | ??????????""""???????????????????????????????????? | | ??????????""""???????????????????????????????????? | | ??????????""""???????????????????????????????????? | +----------------------------------------------------+ Best States ------------- Heat Dissipation 103 Energy Generation 39 Energy Capacity 640 Matter Stores 400 Matter Capacity 400 Sight Range 20 Robot Scan Range 20 Terrain Scan Density 10 Resistance: KI 10 Resistance: TH 15 Weapon Cycling 30 Evasion (%) 70 Energy Filtering 30 Offensive Hacking 50 Item Schematics ----------------- Adv. Beam Cannon | -9/Materials | Scanalyzed Signal Interpreter | -9/Materials | Scanalyzed Rocket Launcher | -9/Materials | Scanalyzed Ion Engine | -9/Materials | Extracted Targeting Computer | -9/Materials | Extracted Cooling System | -9/Materials | Extracted Shield Generator | -9/Materials | Extracted Imp. Treads | -9/Materials | Extracted Field Recycling Unit | -9/Materials | Extracted Med. Battery | -9/Materials | Extracted Tesla Rifle | -7/Factory | Hacked Imp. Reclamation Unit | -7/Factory | Hacked EM Shield | -7/Factory | Hacked Cld. VTOL Module | -7/Factory | Scanalyzed Gatling Laser | -7/Factory | Scanalyzed Combat Drone Bay | -7/Data Miner | Free Exp. Cesium-ion Thruster | -7/Data Miner | Free Cmb. Gravmag System | -7/Data Miner | Free Lgt. Regenerative Plating | -7/Data Miner | Free Exp. Terrain Scanner | -7/Data Miner | Free Triangulator | -7/Data Miner | Free Exp. Targeting Computer | -7/Data Miner | Free Exp. ECM Suite | -7/Data Miner | Free Cloaking Device | -7/Data Miner | Free Plasma Sword | -7/Data Miner | Free Robot Schematics ------------------ S-27 Virus | -7/Data Miner | Free G-50 Soldier | -7/Data Miner | Free G-67 Veteran | -7/Data Miner | Free H-66 Slayer | -7/Data Miner | Free P-70 Sage | -7/Data Miner | Free I-36 Angel | -7/Data Miner | Free I-47 Archangel | -7/Data Miner | Free Fabricated ------------ Weapon Cycler | x2 | -7/Factory | Preloaded Gatling Laser | x2 | -7/Factory Gatling Laser | x2 | -7/Factory Exp. Cesium-ion Thruster | x1 | -6/Factory Alien Tech Used ----------------- None Achievements -------------- Backstab GoHome() Power Corrupts Challenges ------------ None RPGLIKE | -11 -10 -10 -9 -8 -7 -7 -7 -7 -6 -6 --------- Run | Scr Mat Min Mat Mat Fac Low Low Dat Pro Fac Levels Raised 16 | . . 1 4 3 4 1 . . 2 1 XP Earned 27522 | 3000 . 2307 6040 4282 6804 748 349 453 1695 1844 XP Spent 26915 | 2975 . 1250 6220 2785 7700 . . . 4460 1525 Upgrades 62 | 10 . 3 12 10 9 . . . 13 5 Power Slot 1 | . . . . 1 . . . . . . Propulsion Slot 3 | . . 1 2 . . . . . . . Utility Slot 6 | 1 . . 2 . 2 . . . 1 . Weapon Slot 2 | 1 . . . 1 . . . . . . Core Integrity 8 | 1 . . . 3 . . . . 4 . Heat Dissipation 13 | 1 . . 3 3 . . . . 6 . Energy Generation 2 | . . . . . . . . . . 2 Mass Support 4 | 2 . . . . 2 . . . . . Inventory Capacity 4 | . . 2 . 1 1 . . . . . Sight Range 4 | 4 . . . . . . . . . . Sensor Range 2 | . . . . . . . . . . 2 Hack Attack % 6 | . . . 4 . 2 . . . . . KI Resistance % 2 | . . . . 1 1 . . . . . TH Resistance % 3 | . . . 1 . 1 . . . . 1 TH Damage % 2 | . . . . . . . . . 2 . Protomatter Created 1299 | . . 47 255 472 455 52 . . 18 . Integrity Restored 3351 | . . 198 894 1038 1011 156 . . 54 . Core 3351 | . . 198 894 1038 1011 156 . . 54 . Protomatter Decayed 213 | . . . . 126 75 . . . 12 . Game ------ Seed PointModifiedFacilitator Manual? 0 Play Time 01:57:23 Cumulative 45.8 hours Start 2020.01.05 @ 18:12:57 End 2020.01.06 @ 04:25:43 Sessions 7 Manual Loads 0 Difficulty Rogue Special Mode Winter2019/RPGLIKE Game No. 65 Rogue 65 Adventurer 0 Explorer 0 Win Type - Total 0 Types 0/0/0/0/0/0/0 Lore% 26 Gallery% 38 Achievement% 29 Wizard Run 0 Options --------- ASCII 0 Keyboard 0 Movement Mouse Keybinds 0 Fullscreen 1 Font 18/X11 Map View 76x50 Tactical HUD 1 Map Filters NONE Filters NONE Steam 1 RUN: 658d4653-dfaf-43bb-875b-cb077e77d123